lending/lending_fUSD_20260110
["ID","MTS","AMOUNT","RATE_DAILY","PERIOD"]
[401191625,1768033840730,-1760.0886219,0.00016018,2]
[401191626,1768033840739,-150.0,0.00016036,2]
[401191627,1768033840749,-150.0,0.00016036,2]
[401191628,1768033840759,-150.0,0.00016036,2]
[401191629,1768033840768,-150.0,0.00016036,2]
[401191630,1768033841059,-158.12267731,0.00016049,2]
[401191631,1768033841089,-166.66,0.00016052,2]
[401191632,1768033841099,-200.0,0.00016091,2]
[401191633,1768033841109,-200.0,0.00016091,2]
[401191634,1768033841118,-200.0,0.00016091,2]
[401191635,1768033841128,-200.0,0.00016091,2]
[401191636,1768033841137,-2687.76229548,0.000161,2]
[401191637,1768033841147,-4460.51539019,0.000161,2]
[401191638,1768033841158,-200.0,0.0001611,2]
[401191639,1768033841167,-255.68743637,0.000162,2]
[401191640,1768033841177,-189.54348929,0.000162,2]
[401191641,1768033841186,-263.75602621,0.000162,2]
[401191642,1768033841196,-150.0,0.000162,2]
[401191643,1768033841205,-150.0,0.000162,2]
[401191644,1768033841214,-216.87423394,0.000162,2]
[401191645,1768033841224,-150.0,0.000162,2]
[401191646,1768033841234,-150.0,0.000162,2]
[401191647,1768033841243,-150.0,0.000162,2]
[401191648,1768033841252,-229.31905987,0.000162,2]
[401191649,1768033841262,-150.0,0.000162,2]
[401191650,1768033841271,-150.0,0.000162,2]
[401191651,1768033841281,-150.0,0.000162,2]
[401191652,1768033841291,-150.0,0.000162,2]
[401191653,1768033841300,-150.0,0.000162,2]
[401191654,1768033841310,-150.0,0.000162,2]
[401191655,1768033841319,-178.71892515,0.000162,2]
[401191656,1768033841329,-97565.16934073,0.000162,5]
[401191657,1768033841338,-200.0,0.00016203,2]
[401191658,1768033841347,-255.68743637,0.00016218,2]
[401191659,1768033841356,-189.54348929,0.00016218,2]
[401191660,1768033841365,-263.75602621,0.00016218,2]
[401191661,1768033841375,-216.87423394,0.00016218,2]
[401191662,1768033841386,-229.31905987,0.00016218,2]
[401191663,1768033841395,-178.71892515,0.00016218,2]
[401191664,1768033841407,-150.0,0.0001623,2]
[401191665,1768033841417,-170.32473985,0.00016232,2]
[401191666,1768033841427,-150.0,0.00016235,2]
[401191667,1768033841437,-255.68743637,0.00016236,2]
[401191668,1768033841447,-189.54348929,0.00016236,2]
[401191669,1768033841456,-263.75602621,0.00016236,2]
[401191670,1768033841467,-216.87423394,0.00016236,2]
[401191671,1768033841477,-229.31905987,0.00016236,2]
[401191672,1768033841488,-178.71892515,0.00016236,2]
[401191673,1768033841497,-150.0,0.00016241,2]
[401191674,1768033841506,-255.68743637,0.00016255,2]
[401191675,1768033841516,-189.54348929,0.00016255,2]
[401191676,1768033841525,-263.75602621,0.00016255,2]
[401191677,1768033841535,-216.87423394,0.00016255,2]
[401191678,1768033841544,-229.31905987,0.00016255,2]
[401191679,1768033841553,-178.71892515,0.00016255,2]
[401191680,1768033841562,-150.0,0.00016259,2]
[401191681,1768033841572,-150.0,0.00016267,2]
[401191682,1768033841581,-150.0,0.00016269,2]
[401191683,1768033841590,-200.0,0.00016271,2]
[401191684,1768033841600,-255.68743637,0.00016273,2]
[401191685,1768033841609,-189.54348929,0.00016273,2]
[401191686,1768033841618,-263.75602621,0.00016273,2]
[401191687,1768033841627,-216.87423394,0.00016273,2]
[401191688,1768033841637,-229.31905987,0.00016273,2]
[401191689,1768033841646,-178.71892515,0.00016273,2]
[401191690,1768033841655,-150.0,0.00016282,2]
[401191691,1768033841664,-150.0,0.00016289,2]
[401191692,1768033841677,-255.68743637,0.00016291,2]
[401191693,1768033841686,-189.54348929,0.00016291,2]
[401191694,1768033841696,-263.75602621,0.00016291,2]
[401191695,1768033841706,-216.87423394,0.00016291,2]
[401191696,1768033841715,-229.31905987,0.00016291,2]
[401191697,1768033841726,-178.71892515,0.00016291,2]
[401191698,1768033841735,-150.0,0.00016304,2]
[401191699,1768033841745,-255.68743637,0.00016309,2]
[401191700,1768033841755,-189.54348929,0.00016309,2]
[401191701,1768033841764,-263.75602621,0.00016309,2]
[401191702,1768033841773,-216.87423394,0.00016309,2]
[401191703,1768033841783,-229.31905987,0.00016309,2]
[401191704,1768033841792,-178.71892515,0.00016309,2]
[401191705,1768033841803,-150.0,0.00016312,2]
[401191706,1768033841812,-150.0,0.00016318,2]
[401191707,1768033841821,-150.0,0.00016323,2]
[401191708,1768033841831,-2687.76229548,0.00016325,2]
[401191709,1768033841840,-4460.51539019,0.00016325,2]
[401191710,1768033841851,-255.68743637,0.00016327,2]
[401191711,1768033841861,-189.54348929,0.00016327,2]
[401191712,1768033841870,-263.75602621,0.00016327,2]
[401191713,1768033841880,-216.87423394,0.00016327,2]
[401191714,1768033841890,-229.31905987,0.00016327,2]
[401191715,1768033841900,-178.71892515,0.00016327,2]
[401191716,1768033841909,-150.0,0.00016333,2]
[401191717,1768033841919,-150.0,0.00016338,2]
[401191718,1768033841929,-13096.62,0.00016343,2]
[401191719,1768033841938,-255.68743637,0.00016345,2]
[401191720,1768033841948,-189.54348929,0.00016345,2]
[401191721,1768033841957,-263.75602621,0.00016345,2]
[401191722,1768033841967,-216.87423394,0.00016345,2]
[401191723,1768033841977,-229.31905987,0.00016345,2]
[401191724,1768033841987,-178.71892515,0.00016345,2]
[401191725,1768033841996,-150.0,0.00016348,2]
[401191726,1768033842006,-158.12267731,0.00016358,2]
[401191727,1768033842015,-255.68743637,0.00016364,2]
[401191728,1768033842026,-189.54348929,0.00016364,2]
[401191729,1768033842036,-263.75602621,0.00016364,2]
[401191730,1768033842046,-216.87423394,0.00016364,2]
[401191731,1768033842056,-150.0,0.00016364,2]
[401191732,1768033842065,-229.31905987,0.00016364,2]
[401191733,1768033842074,-178.71892515,0.00016364,2]
[401191734,1768033842083,-150.0,0.00016373,2]
[401191735,1768033842093,-150.0,0.00016377,2]
[401191736,1768033842103,-255.68743637,0.00016382,2]
[401191737,1768033842112,-189.54348929,0.00016382,2]
[401191738,1768033842121,-263.75602621,0.00016382,2]
[401191739,1768033842132,-216.87423394,0.00016382,2]
[401191740,1768033842144,-229.31905987,0.00016382,2]
[401191741,1768033842154,-178.71892515,0.00016382,2]
[401191742,1768033842164,-255.68743637,0.000164,2]
[401191743,1768033842174,-189.54348929,0.000164,2]
[401191744,1768033842185,-263.75602621,0.000164,2]
[401191745,1768033842195,-216.87423394,0.000164,2]
[401191746,1768033842205,-150.0,0.000164,2]
[401191747,1768033842215,-150.0,0.000164,2]
[401191748,1768033842226,-229.31905987,0.000164,2]
[401191749,1768033842235,-150.0,0.000164,2]
[401191750,1768033842244,-178.71892515,0.000164,2]
[401191751,1768033842254,-150.0,0.00016405,2]
[401191752,1768033842264,-150.0,0.00016407,2]
[401191753,1768033842275,-150.0,0.00016408,2]
[401191754,1768033842285,-255.68743637,0.00016418,2]
[401191755,1768033842295,-189.54348929,0.00016418,2]
[401191756,1768033842304,-263.75602621,0.00016418,2]
[401191757,1768033842314,-216.87423394,0.00016418,2]
[401191758,1768033842324,-229.31905987,0.00016418,2]
[401191759,1768033842333,-178.71892515,0.00016418,2]
[401191760,1768033842343,-150.0,0.00016425,2]
[401191761,1768033842352,-200.0,0.00016433,2]
[401191762,1768033842362,-150.0,0.00016436,2]
[401191763,1768033842372,-255.68743637,0.00016436,2]
[401191764,1768033842381,-189.54348929,0.00016436,2]
[401191765,1768033842391,-263.75602621,0.00016436,2]
[401191766,1768033842401,-216.87423394,0.00016436,2]
[401191767,1768033842411,-229.31905987,0.00016436,2]
[401191768,1768033842420,-178.71892515,0.00016436,2]
[401191769,1768033842431,-500.0,0.00016438,2]
[401191770,1768033842441,-500.0,0.00016438,2]
[401191771,1768033842450,-500.0,0.00016438,2]
[401191772,1768033842460,-500.0,0.00016438,2]
[401191773,1768033842470,-600.0,0.00016438,2]
[401191774,1768033842479,-567.0,0.00016438,2]
[401191775,1768033842489,-150.0,0.00016442,2]
[401191776,1768033842499,-150.0,0.00016445,2]
[401191777,1768033842508,-255.68743637,0.00016455,2]
[401191778,1768033842518,-189.54348929,0.00016455,2]
[401191779,1768033842528,-263.75602621,0.00016455,2]
[401191780,1768033842537,-216.87423394,0.00016455,2]
[401191781,1768033842546,-229.31905987,0.00016455,2]
[401191782,1768033842556,-178.71892515,0.00016455,2]
[401191783,1768033842566,-150.0,0.00016466,2]
[401191784,1768033842575,-150.0,0.00016467,2]
[401191785,1768033842584,-255.68743637,0.00016473,2]
[401191786,1768033842594,-189.54348929,0.00016473,2]
[401191787,1768033842603,-263.75602621,0.00016473,2]
[401191788,1768033842612,-216.87423394,0.00016473,2]
[401191789,1768033842621,-229.31905987,0.00016473,2]
[401191790,1768033842630,-178.71892515,0.00016473,2]
[401191791,1768033842640,-150.0,0.00016477,2]
[401191792,1768033842649,-150.0,0.00016486,2]
[401191793,1768033842659,-255.68743637,0.00016491,2]
[401191794,1768033842671,-189.54348929,0.00016491,2]
[401191795,1768033842681,-263.75602621,0.00016491,2]
[401191796,1768033842690,-216.87423394,0.00016491,2]
[401191797,1768033842699,-229.31905987,0.00016491,2]
[401191798,1768033842709,-178.71892515,0.00016491,2]
[401191799,1768033842719,-150.0,0.00016495,2]
[401191800,1768033842728,-150.0,0.000165,2]
[401191801,1768033842738,-255.68743637,0.00016509,2]
[401191802,1768033842748,-189.54348929,0.00016509,2]
[401191803,1768033842759,-263.75602621,0.00016509,2]
[401191804,1768033842768,-216.87423394,0.00016509,2]
[401191805,1768033842777,-229.31905987,0.00016509,2]
[401191806,1768033842786,-178.71892515,0.00016509,2]
[401191807,1768033842796,-150.0,0.00016512,2]
[401191808,1768033842805,-1000.0,0.00016515,2]
[401191809,1768033842814,-150.0,0.00016525,2]
[401191810,1768033842824,-255.68743637,0.00016527,2]
[401191811,1768033842833,-189.54348929,0.00016527,2]
[401191812,1768033842842,-263.75602621,0.00016527,2]
[401191813,1768033842851,-216.87423394,0.00016527,2]
[401191814,1768033842861,-150.0,0.00016527,2]
[401191815,1768033842871,-229.31905987,0.00016527,2]
[401191816,1768033842881,-178.71892515,0.00016527,2]
[401191817,1768033842891,-150.0,0.00016533,2]
[401191818,1768033842901,-150.0,0.00016537,2]
[401191819,1768033842911,-255.68743637,0.00016545,2]
[401191820,1768033842921,-189.54348929,0.00016545,2]
[401191821,1768033842930,-263.75602621,0.00016545,2]
[401191822,1768033842940,-216.87423394,0.00016545,2]
[401191823,1768033842949,-229.31905987,0.00016545,2]
[401191824,1768033842959,-178.71892515,0.00016545,2]
[401191825,1768033842968,-150.0,0.00016546,2]
[401191826,1768033842978,-2687.76229548,0.0001655,2]
[401191827,1768033842988,-4460.51539019,0.0001655,2]
[401191828,1768033842997,-150.0,0.00016554,2]
[401191829,1768033843007,-150.0,0.0001656,2]
[401191830,1768033843016,-255.68743637,0.00016564,2]
[401191831,1768033843026,-189.54348929,0.00016564,2]
[401191832,1768033843036,-263.75602621,0.00016564,2]
[401191833,1768033843045,-216.87423394,0.00016564,2]
[401191834,1768033843055,-229.31905987,0.00016564,2]
[401191835,1768033843064,-178.71892515,0.00016564,2]
[401191836,1768033843073,-170.32473985,0.00016565,2]
[401191837,1768033843083,-150.0,0.00016568,2]
[401191838,1768033843093,-150.0,0.00016581,2]
[401191839,1768033843102,-255.68743637,0.00016582,2]
[401191840,1768033843111,-189.54348929,0.00016582,2]
[401191841,1768033843121,-263.75602621,0.00016582,2]
[401191842,1768033843131,-216.87423394,0.00016582,2]
[401191843,1768033843140,-229.31905987,0.00016582,2]
[401191844,1768033843150,-178.71892515,0.00016582,2]
[401191845,1768033843160,-150.0,0.00016584,2]
[401191846,1768033843170,-200.0,0.00016598,2]
[401191847,1768033843180,-255.68743637,0.000166,2]
[401191848,1768033843190,-189.54348929,0.000166,2]
[401191849,1768033843199,-263.75602621,0.000166,2]
[401191850,1768033843210,-216.87423394,0.000166,2]
[401191851,1768033843221,-150.0,0.000166,2]
[401191852,1768033843231,-150.0,0.000166,2]
[401191853,1768033843242,-229.31905987,0.000166,2]
[401191854,1768033843252,-150.0,0.000166,2]
[401191855,1768033843262,-178.71892515,0.000166,2]
[401191856,1768033843271,-150.0,0.00016609,2]
[401191857,1768033843279,-150.0,0.00016613,2]
[401191858,1768033843289,-150.0,0.00016615,2]
[401191859,1768033843299,-255.68743637,0.00016618,2]
[401191860,1768033843309,-189.54348929,0.00016618,2]
[401191861,1768033843319,-263.75602621,0.00016618,2]
[401191862,1768033843328,-216.87423394,0.00016618,2]
[401191863,1768033843338,-229.31905987,0.00016618,2]
[401191864,1768033843347,-178.71892515,0.00016618,2]
[401191865,1768033843356,-255.68743637,0.00016636,2]
[401191866,1768033843366,-189.54348929,0.00016636,2]
[401191867,1768033843375,-263.75602621,0.00016636,2]
[401191868,1768033843385,-216.87423394,0.00016636,2]
[401191869,1768033843395,-229.31905987,0.00016636,2]
[401191870,1768033843404,-178.71892515,0.00016636,2]
[401191871,1768033843415,-150.0,0.00016643,2]
[401191872,1768033843424,-150.0,0.0001665,2]
[401191873,1768033843434,-150.0,0.0001665,2]
[401191874,1768033843445,-150.0,0.0001665,2]
[401191875,1768033843455,-255.68743637,0.00016655,2]
[401191876,1768033843465,-189.54348929,0.00016655,2]
[401191877,1768033843475,-263.75602621,0.00016655,2]
[401191878,1768033843484,-216.87423394,0.00016655,2]
[401191879,1768033843495,-229.31905987,0.00016655,2]
[401191880,1768033843504,-178.71892515,0.00016655,2]
[401191881,1768033843513,-158.12267731,0.00016666,2]
[401191882,1768033843523,-150.0,0.00016667,2]
[401191883,1768033843532,-150.0,0.00016672,2]
[401191884,1768033843542,-255.68743637,0.00016673,2]
[401191885,1768033843552,-189.54348929,0.00016673,2]
[401191886,1768033843561,-263.75602621,0.00016673,2]
[401191887,1768033843572,-216.87423394,0.00016673,2]
[401191888,1768033843582,-229.31905987,0.00016673,2]
[401191889,1768033843592,-178.71892515,0.00016673,2]
[401191890,1768033843602,-150.0,0.00016685,2]
[401191891,1768033843612,-255.68743637,0.00016691,2]
[401191892,1768033843622,-189.54348929,0.00016691,2]
[401191893,1768033843632,-263.75602621,0.00016691,2]
[401191894,1768033843642,-216.87423394,0.00016691,2]
[401191895,1768033843651,-150.0,0.00016691,2]
[401191896,1768033843661,-229.31905987,0.00016691,2]
[401191897,1768033843673,-178.71892515,0.00016691,2]
[401191898,1768033843682,-150.0,0.00016702,2]
[401191899,1768033843692,-255.68743637,0.00016709,2]
[401191900,1768033843702,-189.54348929,0.00016709,2]
[401191901,1768033843711,-263.75602621,0.00016709,2]
[401191902,1768033843721,-216.87423394,0.00016709,2]
[401191903,1768033843730,-229.31905987,0.00016709,2]
[401191904,1768033843740,-178.71892515,0.00016709,2]
[401191905,1768033843750,-150.0,0.00016719,2]
[401191906,1768033843760,-255.68743637,0.00016727,2]
[401191907,1768033843770,-189.54348929,0.00016727,2]
[401191908,1768033843779,-263.75602621,0.00016727,2]
[401191909,1768033843789,-216.87423394,0.00016727,2]
[401191910,1768033843798,-229.31905987,0.00016727,2]
[401191911,1768033843808,-178.71892515,0.00016727,2]
[401191912,1768033843818,-150.0,0.00016731,2]
[401191913,1768033843828,-150.0,0.00016732,2]
[401191914,1768033843838,-150.0,0.00016733,2]
[401191915,1768033843847,-255.68743637,0.00016745,2]
[401191916,1768033843857,-189.54348929,0.00016745,2]
[401191917,1768033843867,-263.75602621,0.00016745,2]
[401191918,1768033843876,-216.87423394,0.00016745,2]
[401191919,1768033843886,-229.31905987,0.00016745,2]
[401191920,1768033843896,-178.71892515,0.00016745,2]
[401191921,1768033843907,-150.0,0.00016754,2]
[401191922,1768033843916,-150.0,0.00016761,2]
[401191923,1768033843926,-150.0,0.00016762,2]
[401191924,1768033843936,-255.68743637,0.00016764,2]
[401191925,1768033843945,-189.54348929,0.00016764,2]
[401191926,1768033843955,-263.75602621,0.00016764,2]
[401191927,1768033843964,-216.87423394,0.00016764,2]
[401191928,1768033843974,-229.31905987,0.00016764,2]
[401191929,1768033843985,-178.71892515,0.00016764,2]
[401191930,1768033843995,-150.0,0.00016773,2]
[401191931,1768033844004,-2687.76229548,0.00016775,2]
[401191932,1768033844014,-4460.51539019,0.00016775,2]
[401191933,1768033844023,-433.0,0.00016777,2]
[401191934,1768033844032,-255.68743637,0.00016782,2]
[401191935,1768033844042,-189.54348929,0.00016782,2]
[401191936,1768033844052,-263.75602621,0.00016782,2]
[401191937,1768033844061,-216.87423394,0.00016782,2]
[401191938,1768033844071,-229.31905987,0.00016782,2]
[401191939,1768033844081,-178.71892515,0.00016782,2]
[401191940,1768033844091,-150.0,0.00016788,2]
[401191941,1768033844101,-150.0,0.0001679,2]
[401191942,1768033844111,-255.68743637,0.000168,2]
[401191943,1768033844121,-189.54348929,0.000168,2]
[401191944,1768033844131,-150.0,0.000168,2]
[401191945,1768033844140,-150.0,0.000168,2]
[401191946,1768033844151,-500.0,0.000168,2]
[401191947,1768033844161,-263.75602621,0.000168,2]
[401191948,1768033844170,-150.0,0.000168,2]
[401191949,1768033844180,-500.0,0.000168,2]
[401191950,1768033844190,-150.0,0.000168,2]
[401191951,1768033844199,-500.0,0.000168,2]
[401191952,1768033844208,-216.87423394,0.000168,2]
[401191953,1768033844218,-150.0,0.000168,2]
[401191954,1768033844228,-150.0,0.000168,2]
[401191955,1768033844239,-229.31905987,0.000168,2]
[401191956,1768033844249,-150.0,0.000168,2]
[401191957,1768033844258,-150.0,0.000168,2]
[401191958,1768033844269,-178.71892515,0.000168,2]
[401191959,1768033844279,-150.0,0.00016814,2]
[401191960,1768033844288,-433.0,0.00016815,2]
[401191961,1768033844299,-255.68743637,0.00016818,2]
[401191962,1768033844308,-189.54348929,0.00016818,2]
[401191963,1768033844318,-263.75602621,0.00016818,2]
[401191964,1768033844328,-216.87423394,0.00016818,2]
[401191965,1768033844338,-229.31905987,0.00016818,2]
[401191966,1768033844348,-178.71892515,0.00016818,2]
[401191967,1768033844357,-150.0,0.0001682,2]
[401191968,1768033844367,-150.0,0.00016823,2]
[401191969,1768033844376,-150.0,0.00016825,2]
[401191970,1768033844386,-500.0,0.00016825,2]
[401191971,1768033844396,-150.0,0.00016825,2]
[401191972,1768033844406,-150.0,0.00016825,2]
[401191973,1768033844416,-150.0,0.00016825,2]
[401191974,1768033844426,-255.68743637,0.00016836,2]
[401191975,1768033844436,-189.54348929,0.00016836,2]
[401191976,1768033844446,-263.75602621,0.00016836,2]
[401191977,1768033844456,-216.87423394,0.00016836,2]
[401191978,1768033844466,-229.31905987,0.00016836,2]
[401191979,1768033844476,-178.71892515,0.00016836,2]
[401191980,1768033844485,-433.0,0.00016847,2]
[401191981,1768033844495,-150.0,0.00016849,2]
[401191982,1768033844505,-1897.91,0.00016854,2]
[401191983,1768033844516,-255.68743637,0.00016855,2]
[401191984,1768033844526,-189.54348929,0.00016855,2]
[401191985,1768033844536,-263.75602621,0.00016855,2]
[401191986,1768033844545,-216.87423394,0.00016855,2]
[401191987,1768033844555,-150.0,0.00016855,2]
[401191988,1768033844565,-229.31905987,0.00016855,2]
[401191989,1768033844575,-178.71892515,0.00016855,2]
[401191990,1768033844585,-500.0,0.00016855,2]
[401191991,1768033844595,-150.0,0.00016855,2]
[401191992,1768033844605,-500.0,0.00016855,2]
[401191993,1768033844614,-500.0,0.00016855,2]
[401191994,1768033844625,-150.0,0.00016858,2]
[401191995,1768033844635,-433.0,0.00016863,2]
[401191996,1768033844645,-150.0,0.00016867,2]
[401191997,1768033844663,-255.68743637,0.00016873,2]
[401191998,1768033844684,-189.54348929,0.00016873,2]
[401191999,1768033844703,-263.75602621,0.00016873,2]
[401192000,1768033844722,-216.87423394,0.00016873,2]
[401192001,1768033844732,-229.31905987,0.00016873,2]
[401192002,1768033844741,-178.71892515,0.00016873,2]
[401192003,1768033844751,-150.0,0.00016875,2]
[401192004,1768033844760,-150.0,0.00016879,2]
[401192005,1768033844770,-211.95680592,0.0001688,2]
[401192006,1768033844779,-500.0,0.0001688,2]
[401192007,1768033844789,-150.0,0.0001688,2]
[401192008,1768033844798,-150.0,0.0001688,2]
[401192009,1768033844807,-150.0,0.0001688,2]
[401192010,1768033844817,-255.68743637,0.00016891,2]
[401192011,1768033844826,-189.54348929,0.00016891,2]
[401192012,1768033844836,-263.75602621,0.00016891,2]
[401192013,1768033844845,-216.87423394,0.00016891,2]
[401192014,1768033844855,-229.31905987,0.00016891,2]
[401192015,1768033844864,-178.71892515,0.00016891,2]
[401192016,1768033844874,-166.66,0.00016892,2]
[401192017,1768033844884,-150.0,0.00016892,2]
[401192018,1768033844894,-150.0,0.00016895,2]
[401192019,1768033844904,-170.32473985,0.00016899,2]
[401192020,1768033844913,-50000.0,0.000169,2]
[401192021,1768033844922,-270.12,0.000169,2]
[401192022,1768033844932,-336.3803781,0.000169,2]
[401192023,1768033844942,-150.0,0.00016908,2]
[401192024,1768033844952,-255.68743637,0.00016909,2]
[401192025,1768033844961,-189.54348929,0.00016909,2]
[401192026,1768033844971,-263.75602621,0.00016909,2]
[401192027,1768033844981,-216.87423394,0.00016909,2]
[401192028,1768033844991,-229.31905987,0.00016909,2]
[401192029,1768033845000,-178.71892515,0.00016909,2]
[401192030,1768033845010,-246.0,0.0001691,2]
[401192031,1768033845019,-500.0,0.0001691,2]
[401192032,1768033845029,-500.0,0.0001691,2]
[401192033,1768033845038,-150.0,0.0001692,2]
[401192034,1768033845047,-433.0,0.0001692,2]
[401192035,1768033845057,-150.0,0.00016927,2]
[401192036,1768033845068,-255.68743637,0.00016927,2]
[401192037,1768033845077,-189.54348929,0.00016927,2]
[401192038,1768033845086,-263.75602621,0.00016927,2]
[401192039,1768033845100,-216.87423394,0.00016927,2]
[401192040,1768033845110,-229.31905987,0.00016927,2]
[401192041,1768033845119,-178.71892515,0.00016927,2]
[401192042,1768033845129,-150.0,0.00016933,2]
[401192043,1768033845138,-500.0,0.00016935,2]
[401192044,1768033845148,-150.0,0.00016935,2]
[401192045,1768033845157,-150.0,0.00016935,2]
[401192046,1768033845167,-150.0,0.00016936,2]
[401192048,1768033845176,-150.0,0.00016938,2]
[401192049,1768033845186,-433.0,0.00016945,2]
[401192050,1768033845196,-255.68743637,0.00016945,2]
[401192051,1768033845206,-189.54348929,0.00016945,2]
[401192052,1768033845216,-263.75602621,0.00016945,2]
[401192053,1768033845226,-216.87423394,0.00016945,2]
[401192054,1768033845237,-229.31905987,0.00016945,2]
[401192055,1768033845483,-178.71892515,0.00016945,2]
[401192056,1768033845493,-150.0,0.00016962,2]
[401192057,1768033845503,-255.68743637,0.00016964,2]
[401192058,1768033845513,-189.54348929,0.00016964,2]
[401192059,1768033845523,-263.75602621,0.00016964,2]
[401192060,1768033845533,-216.87423394,0.00016964,2]
[401192061,1768033845543,-229.31905987,0.00016964,2]
[401192062,1768033845552,-178.71892515,0.00016964,2]
[401192063,1768033845562,-500.0,0.00016964,2]
[401192064,1768033845572,-500.0,0.00016964,2]
[401192065,1768033845582,-150.0,0.00016967,2]
[401192066,1768033845592,-158.12267731,0.00016975,2]
[401192067,1768033845602,-150.0,0.00016977,2]
[401192068,1768033845611,-255.68743637,0.00016982,2]
[401192069,1768033845621,-189.54348929,0.00016982,2]
[401192070,1768033845630,-263.75602621,0.00016982,2]
[401192071,1768033845640,-216.87423394,0.00016982,2]
[401192072,1768033845650,-229.31905987,0.00016982,2]
[401192073,1768033845659,-178.71892515,0.00016982,2]
[401192074,1768033845669,-600.0,0.00016986,2]
[401192075,1768033845680,-150.0,0.00016987,2]
[401192076,1768033845690,-500.0,0.00016989,2]
[401192077,1768033845700,-150.0,0.00016996,2]
[401192078,1768033845711,-150.0,0.00016997,2]
[401192079,1768033845721,-255.68743637,0.00017,2]
[401192080,1768033845731,-189.54348929,0.00017,2]
[401192081,1768033845741,-263.75602621,0.00017,2]
[401192082,1768033845752,-216.87423394,0.00017,2]
[401192083,1768033845762,-150.0,0.00017,2]
[401192084,1768033845771,-150.0,0.00017,2]
[401192085,1768033845781,-229.31905987,0.00017,2]
[401192086,1768033845791,-150.0,0.00017,2]
[401192087,1768033845801,-178.71892515,0.00017,2]
[401192088,1768033845810,-2687.76229548,0.00017,2]
[401192089,1768033845820,-377.61,0.00017,2]
[401192090,1768033845830,-4460.51539019,0.00017,2]
[401192091,1768033845840,-210.20353926,0.00017,2]
[401192092,1768033845850,-255.68743637,0.00017018,2]
[401192093,1768033845860,-189.54348929,0.00017018,2]
[401192094,1768033845869,-263.75602621,0.00017018,2]
[401192095,1768033845879,-216.87423394,0.00017018,2]
[401192096,1768033845888,-150.0,0.00017018,2]
[401192097,1768033845898,-229.31905987,0.00017018,2]
[401192098,1768033845907,-178.71892515,0.00017018,2]
[401192099,1768033845917,-206.0,0.00017019,2]
[401192100,1768033845926,-300.0,0.00017019,2]
[401192101,1768033845936,-150.0,0.00017026,2]
[401192102,1768033845946,-10000.0,0.00017027,2]
[401192103,1768033845956,-150.0,0.00017031,2]
[401192104,1768033845965,-255.68743637,0.00017036,2]
[401192105,1768033845974,-189.54348929,0.00017036,2]
[401192106,1768033845984,-263.75602621,0.00017036,2]
[401192107,1768033845994,-216.87423394,0.00017036,2]
[401192108,1768033846004,-229.31905987,0.00017036,2]
[401192109,1768033846013,-178.71892515,0.00017036,2]
[401192110,1768033846022,-164.0,0.0001704,2]
[401192111,1768033846032,-161.34563467,0.00017044,2]
[401192112,1768033846041,-255.68743637,0.00017055,2]
[401192113,1768033846051,-189.54348929,0.00017055,2]
[401192114,1768033846060,-263.75602621,0.00017055,2]
[401192115,1768033846070,-216.87423394,0.00017055,2]
[401192116,1768033846080,-229.31905987,0.00017055,2]
[401192117,1768033846090,-178.71892515,0.00017055,2]
[401192118,1768033846102,-150.0,0.00017056,2]
[401192119,1768033846112,-150.0,0.00017059,2]
[401192120,1768033846123,-150.0,0.00017065,2]
[401192121,1768033846133,-150.0,0.00017067,2]
[401192122,1768033846143,-255.68743637,0.00017073,2]
[401192123,1768033846153,-189.54348929,0.00017073,2]
[401192124,1768033846164,-263.75602621,0.00017073,2]
[401192125,1768033846174,-216.87423394,0.00017073,2]